bitfinex/quotes_ETHUSD_20260304
["timestamp","ask_amount","ask_price","bid_price","bid_amount"]
[1772608008147,3.02084351,1978.0,1977.8,10.0]
[1772608008954,1.26378549,1978.2,1977.8,10.0]
[1772608009150,3.02054227,1978.1,1977.8,10.0]
[1772608009354,4.96954227,1978.1,1977.8,10.0]
[1772608009554,3.02054227,1978.0,1977.8,10.0]
[1772608011871,3.02054227,1978.0,1977.5,4.21797946]
[1772608012187,3.02054227,1978.0,1977.7,10.0]
[1772608012483,3.02054227,1978.0,1977.6,4.21797946]
[1772608012892,4.284471,1978.0,1977.7,10.0]
[1772608013110,4.284471,1978.0,1977.7,8.23716471]
[1772608013111,3.02054227,1977.9,1977.7,8.23716471]
[1772608013386,3.01954227,1977.9,1977.8,0.001]
[1772608013575,3.01954227,1977.9,1977.4,4.30078298]
[1772608013753,4.28352948,1977.9,1977.7,0.001]
[1772608013945,0.44292212,1977.8,1977.7,0.001]
[1772608014146,0.44292212,1977.8,1977.7,12.53894769]
[1772608014370,1.951,1977.9,1977.7,12.53894769]
[1772608014569,1.951,1977.9,1977.8,8.23716471]
[1772608014757,2.39397447,1977.9,1977.8,8.23716471]
[1772608014952,0.36153397,1977.9,1977.8,8.23816471]
[1772608016174,1.951,1978.0,1977.8,8.23816471]
[1772608016756,1.951,1978.0,1977.8,0.001]
[1772608017150,1.951,1978.0,1977.9,0.001]
[1772608017594,1.951,1978.0,1977.9,8.23816471]
[1772608018983,1.951,1978.0,1977.9,0.001]
[1772608019147,1.95,1978.0,1977.9,8.23716471]
[1772608019475,2.42001623,1978.1,1977.9,12.53794769]
[1772608019981,4.37301623,1978.1,1977.9,12.53794769]
[1772608020279,5.63686812,1978.1,1977.9,8.23716471]
[1772608020481,0.01095276,1978.0,1977.7,0.001]
[1772608020779,0.01095276,1978.0,1977.8,8.23716471]
[1772608021980,2.42001623,1978.1,1977.9,4.30078298]
[1772608022155,1.956,1978.2,1977.9,4.30078298]
[1772608022354,1.956,1978.2,1978.0,5.81714848]
[1772608022556,1.956,1978.2,1978.0,1.26208921]
[1772608023071,0.002,1978.2,1977.9,4.30078298]
[1772608023270,1.956,1978.2,1977.9,4.30078298]
[1772608024170,3.21980468,1978.2,1977.9,4.30078298]
[1772608024476,1.956,1978.2,1977.9,1.26208921]
[1772608024655,1.956,1978.2,1977.9,5.56287219]
[1772608025155,3.03066812,1978.1,1977.9,5.56287219]
[1772608025355,3.03066812,1978.0,1977.9,5.56287219]
[1772608025581,3.03066812,1978.0,1977.7,1.26507956]
[1772608025758,1.76857891,1977.9,1977.7,5.56586254]
[1772608025958,3.40054375,1978.2,1977.8,0.001]
[1772608026579,1.44654375,1978.2,1977.8,0.001]
[1772608026886,3.40254375,1978.2,1977.8,4.30178298]
[1772608027561,3.40254375,1978.2,1977.8,0.001]
[1772608027756,0.21155423,1978.1,1977.8,0.001]
[1772608028763,1.47544439,1978.1,1977.8,0.001]
[1772608029303,0.21155423,1978.1,1977.8,0.001]
[1772608029464,1.4753969,1978.1,1977.8,0.001]
[1772608029665,1.957,1978.0,1977.6,4.15108298]
[1772608029867,1.957,1978.0,1977.9,0.001]
[1772608030397,0.13272188,1978.2,1977.9,0.001]
[1772608030398,1.958,1978.1,1977.9,0.001]
[1772608030967,1.26390293,1978.0,1977.9,0.001]
[1772608031662,7.28912863,1978.1,1977.9,0.001]
[1772608031663,3.49765275,1978.1,1977.9,0.001]
[1772608031865,0.001,1978.0,1977.6,5.59586009]
[1772608032064,0.001,1978.0,1977.6,4.33171009]
[1772608032664,0.001,1978.0,1977.6,5.59586069]
[1772608033190,0.001,1978.0,1977.6,5.59586231]
[1772608033393,0.001,1978.0,1977.7,4.33171009]
[1772608034009,0.001,1977.8,1977.7,4.33171009]
[1772608034300,3.62631093,1978.2,1977.8,4.33121009]
[1772608034500,0.26087109,1978.3,1977.8,4.33121009]
[1772608034501,0.002,1978.3,1977.9,4.33121009]
[1772608035080,0.002,1978.3,1978.0,1.26390293]
[1772608035265,0.002,1978.3,1978.0,5.59511302]
[1772608035466,0.001,1978.2,1978.0,5.59511302]
[1772608035863,0.001,1978.2,1977.9,1.26392034]
[1772608036199,0.001,1978.2,1978.0,4.33121009]
[1772608036998,0.001,1978.2,1977.9,1.26392034]
[1772608037199,0.001,1978.2,1977.7,4.33121009]
[1772608037703,0.001,1978.0,1977.9,4.33221009]
[1772608037902,3.03351707,1978.0,1977.9,4.33221009]
[1772608038102,0.002,1978.1,1977.9,4.33221009]
[1772608038591,0.24138226,1978.1,1977.9,0.001]
[1772608038971,2.28174421,1978.0,1977.9,0.001]
[1772608039174,3.54564714,1978.0,1977.9,0.001]
[1772608040499,5.05739752,1978.1,1977.9,0.001]
[1772608040500,0.002,1978.1,1977.9,0.001]
[1772608042787,0.30796552,1978.1,1977.9,0.001]
[1772608043701,0.002,1978.1,1977.9,0.001]
[1772608045176,0.2883354,1978.1,1977.9,0.001]
[1772608046003,1.55217896,1978.1,1977.9,0.001]
[1772608049088,0.2883354,1978.1,1977.9,0.001]
[1772608051408,0.2883354,1978.1,1978.0,0.001]
[1772608052303,0.002,1978.1,1978.0,0.001]
[1772608053505,0.23520873,1978.1,1978.0,0.001]
[1772608053700,1.49904776,1978.1,1978.0,0.001]
[1772608054608,3.46604776,1978.1,1978.0,0.001]
[1772608056211,3.46604776,1978.1,1977.9,0.001]
[1772608056212,0.21303538,1978.0,1977.7,0.001]
[1772608056421,1.26396683,1977.9,1977.7,0.001]
[1772608056719,1.47600221,1977.9,1977.7,0.001]
[1772608057222,0.21203538,1977.9,1977.7,0.001]
[1772608058093,1.968,1977.8,1977.7,0.001]
[1772608058619,3.23203074,1977.8,1977.7,0.001]
[1772608059291,3.2300085,1977.8,1977.7,0.001]
[1772608059697,3.42183708,1977.8,1977.7,0.001]
[1772608062717,0.17147136,1977.7,1977.6,0.001]
[1772608062920,0.16457143,1977.7,1977.6,0.001]
[1772608063092,3.3945923,1977.8,1977.6,0.001]
[1772608063418,1.26404311,1977.8,1977.6,0.001]
[1772608063618,1.971,1977.7,1977.6,0.001]
[1772608063999,1.26390293,1978.0,1977.6,4.33271009]
[1772608064205,1.972,1977.9,1977.6,4.33271009]
[1772608064701,3.23600237,1977.9,1977.8,0.001]
[1772608065097,0.1497664,1977.8,1977.6,0.001]
[1772608065303,0.1497664,1977.8,1977.7,0.001]
[1772608066222,3.23600237,1977.9,1977.7,0.001]
[1772608066424,5.20054512,1978.0,1977.7,4.33321009]
[1772608066425,1.973,1977.8,1977.7,4.33321009]
[1772608066931,1.973,1977.8,1977.7,0.001]
[1772608067131,3.23703074,1977.8,1977.7,0.001]
[1772608067831,1.973,1977.8,1977.7,0.001]
[1772608068300,1.39814553,1978.0,1977.7,0.001]
[1772608068706,3.23797435,1977.9,1977.7,0.001]
[1772608068926,0.12521498,1977.8,1977.7,0.001]
[1772608069732,3.23797435,1977.9,1977.7,0.001]
[1772608070033,1.26397435,1977.9,1977.7,0.001]
[1772608070334,1.974,1977.8,1977.7,0.001]
[1772608071730,3.34929072,1977.8,1977.7,0.001]
[1772608072024,1.974,1977.8,1977.7,0.001]
[1772608073435,3.33527389,1977.8,1977.7,0.001]
[1772608074936,3.33527389,1977.8,1977.1,4.33321009]
[1772608074937,0.5948737,1977.6,1977.1,4.33321009]
[1772608075233,0.08317201,1977.6,1977.1,4.33321009]
[1772608075803,1.3473883,1977.6,1977.1,4.33321009]
[1772608076834,0.08317201,1977.6,1977.2,4.33221009]
[1772608077338,1.26414432,1977.7,1977.2,4.33221009]
[1772608077837,1.26614432,1977.7,1977.2,4.33221009]
[1772608078242,1.26614432,1977.7,1977.2,1.26439155]
[1772608078414,1.26614432,1977.7,1977.5,0.001]
[1772608078810,0.002,1977.7,1977.5,4.33321009]
[1772608079111,1.98,1977.8,1977.6,4.33121009]
[1772608080020,3.24403652,1977.8,1977.5,0.001]
[1772608080539,3.2440325,1977.8,1977.5,0.001]
[1772608080720,3.29411275,1977.8,1977.5,0.001]
[1772608081230,0.04301609,1977.7,1977.2,4.33121009]
[1772608081744,0.04301609,1977.7,1977.3,4.33121009]
[1772608082035,1.979,1977.6,1977.3,4.33121009]
[1772608082235,0.04301609,1977.7,1977.3,4.33121009]
[1772608082436,1.979,1977.6,1977.3,5.59554515]
[1772608082645,1.979,1977.7,1977.4,4.33121009]
[1772608084036,2.00083549,1977.7,1977.2,5.59561112]
[1772608084423,3.26495918,1977.7,1977.2,5.59561112]
[1772608086146,0.002,1977.8,1977.3,4.84291178]
[1772608086846,1.982,1978.0,1977.4,4.33121009]
[1772608087044,0.002,1978.0,1977.6,4.33121009]
[1772608087251,0.002,1978.3,1978.0,4.33021009]
[1772608087418,0.002,1978.5,1978.2,4.33021009]
[1772608088545,0.002,1978.5,1978.4,0.001]
[1772608090531,0.16354535,1978.5,1977.9,4.24025726]
[1772608090731,0.002,1978.4,1977.9,4.24025726]
[1772608091622,0.001,1978.2,1977.9,4.24025726]
[1772608092950,0.001,1978.2,1977.7,5.50430787]
[1772608093334,0.001,1978.2,1977.8,4.24025726]
[1772608093656,0.001,1978.0,1977.8,4.24025726]
[1772608094152,0.002,1978.4,1977.8,4.24025726]
[1772608094552,0.002,1978.4,1978.0,4.23975726]
[1772608095149,0.001,1978.2,1978.0,4.23975726]
[1772608096555,0.001,1978.2,1978.0,1.26387725]
[1772608096736,0.001,1978.2,1978.1,4.23975726]
[1772608100355,0.002,1978.4,1978.2,4.23925726]
[1772608104950,0.002,1978.4,1978.0,4.23925726]
[1772608104951,0.07041794,1978.4,1978.0,4.23925726]
[1772608105156,0.07041794,1978.4,1977.8,4.23925726]
[1772608105844,1.3321292,1978.3,1977.8,4.23925726]
[1772608106352,0.06138312,1978.2,1977.8,4.23925726]
[1772608106554,1.32707708,1978.4,1977.9,4.23925726]
[1772608107745,1.32707708,1978.4,1977.9,5.50322134]
[1772608108551,1.32707708,1978.4,1977.9,4.23925726]
[1772608109175,1.32707708,1978.4,1977.9,5.50321953]
[1772608109369,0.04026352,1978.3,1977.9,4.23925726]
[1772608109567,0.04026352,1978.3,1977.9,5.50321678]
[1772608109915,0.002,1978.4,1978.0,4.23925726]
[1772608111884,0.002,1978.4,1978.2,4.23925726]
[1772608113849,0.002,1978.4,1978.3,4.23925726]
[1772608114086,0.002,1978.5,1978.4,4.23825726]
[1772608114659,0.002,1978.5,1978.2,5.50197198]
[1772608114987,0.002,1978.5,1978.3,4.23825726]
[1772608115869,0.002,1978.4,1978.3,4.23825726]
[1772608117085,0.002,1978.4,1978.3,5.50196852]
[1772608119566,0.002,1978.4,1978.3,4.23825726]
[1772608120091,0.002,1978.4,1978.3,5.50196852]
[1772608120451,0.002,1978.4,1978.3,4.23825726]
[1772608120656,0.002,1978.4,1978.3,5.50196852]
[1772608121487,0.002,1978.4,1978.3,4.23825726]
[1772608122386,0.002,1978.4,1978.3,5.50196852]
[1772608123383,0.002,1978.4,1978.1,4.23925726]
[1772608123573,0.002,1978.4,1978.2,4.23825726]
[1772608123888,0.002,1978.5,1978.2,4.23725726]
[1772608124990,2.42120628,1978.7,1978.4,4.23725726]
[1772608125487,0.002,1978.7,1978.4,4.23725726]
[1772608127162,0.002,1978.7,1978.5,4.23725726]
[1772608127974,0.002,1978.6,1978.5,4.23725726]
[1772608129174,0.002,1978.6,1978.5,5.50084078]
[1772608129795,0.002,1978.6,1978.5,4.23725726]
[1772608130169,0.002,1978.7,1978.5,1.26358352]
[1772608130479,0.002,1978.7,1978.6,4.23625726]
[1772608131083,4.39920628,1978.9,1978.6,4.23625726]
[1772608131084,2.42120628,1978.9,1978.6,4.23625726]
[1772608131282,3.62631093,1979.4,1978.8,4.23625726]
[1772608131467,1.978,1979.4,1978.8,4.23625726]
[1772608132790,1.26278021,1979.8,1978.9,0.76694546]
[1772608132976,1.979,1979.7,1979.0,4.23625726]
[1772608133371,1.26269003,1979.9,1979.1,1.26320044]
[1772608133573,1.979,1979.8,1979.2,4.23625726]
[1772608133779,1.26267462,1980.0,1979.2,4.23625726]
[1772608134300,1.26261025,1980.1,1979.2,4.23625726]
[1772608134966,0.76694546,1980.0,1979.2,4.23625726]
[1772608135167,0.76694546,1979.8,1979.0,4.23625726]
[1772608135378,1.26281759,1979.7,1979.0,5.4995136]
[1772608135601,1.978,1979.6,1979.0,5.4995136]
[1772608136097,1.978,1979.6,1979.1,4.23625726]
[1772608136688,1.978,1979.6,1978.9,4.23625726]
[1772608137768,1.978,1979.5,1979.0,4.23625726]
[1772608139268,1.978,1979.5,1978.6,4.23625726]
[1772608139269,0.76694546,1979.4,1978.6,4.23625726]
[1772608140002,1.2630728,1979.3,1978.6,5.49977212]
[1772608141605,1.2630728,1979.3,1978.7,4.23625726]
[1772608141805,3.2420728,1979.3,1978.7,5.49965981]
[1772608142206,1.979,1979.3,1978.8,4.23625726]
[1772608143930,3.24208205,1979.3,1978.7,4.23625726]
[1772608144316,0.002,1979.4,1978.7,4.23625726]
[1772608145834,0.002,1979.4,1978.9,4.23625726]
[1772608146849,0.002,1979.4,1979.0,4.23625726]
[1772608147137,0.002,1979.5,1979.1,4.23525726]
[1772608147523,1.977,1980.5,1979.4,4.23525726]
[1772608147709,1.26240595,1980.4,1979.4,4.23525726]
[1772608147898,1.26240595,1980.4,1979.6,4.23525726]
[1772608150340,1.26240595,1980.4,1979.6,5.4981217]
[1772608151327,3.05014058,1980.4,1979.3,4.23525726]
[1772608152041,3.05014058,1980.4,1979.2,1.26313662]
[1772608152235,3.05014058,1980.4,1979.2,5.49839388]
[1772608152425,1.78773463,1980.1,1978.9,4.23525726]
[1772608153539,6.48,1980.0,1978.9,4.23525726]
[1772608154313,1.976,1979.9,1978.9,4.23525726]
[1772608154641,1.26275381,1979.8,1979.1,4.23525726]
[1772608156433,1.26275381,1979.8,1979.0,5.49852153]
[1772608156814,1.26275381,1979.8,1979.1,4.23525726]
[1772608157920,2.53954622,1979.8,1979.1,4.23525726]
[1772608160962,1.27679241,1979.6,1978.7,4.23625726]
[1772608161854,1.26275381,1979.8,1978.7,4.23625726]
[1772608161855,1.27679241,1979.4,1978.7,4.23625726]
[1772608162161,1.973,1979.3,1978.7,4.23625726]
[1772608162752,1.26313662,1979.2,1978.7,0.001]
[1772608163154,2.53992903,1979.2,1978.7,0.001]
[1772608163764,1.26313662,1979.2,1978.7,0.001]
[1772608164249,1.26313662,1979.2,1978.7,4.23625726]
[1772608164631,1.27679241,1978.9,1978.5,0.001]
[1772608164836,1.26330903,1979.0,1978.5,0.001]
[1772608166052,1.26330903,1979.0,1978.8,0.001]
[1772608166362,0.001,1978.9,1978.5,0.001]
[1772608166733,0.001,1978.9,1978.7,0.001]
[1772608168069,1.27779241,1978.9,1978.5,0.001]
[1772608168364,0.001,1978.7,1978.5,0.001]
[1772608168534,1.972,1978.6,1978.5,0.001]
[1772608169459,3.23551966,1978.6,1978.5,0.001]
[1772608169663,0.001,1978.7,1978.5,0.001]
[1772608169975,3.23645672,1978.7,1978.5,0.001]
[1772608170260,0.001,1978.6,1978.5,0.001]
[1772608172232,3.23545672,1978.7,1978.5,0.001]
[1772608172458,0.001,1978.6,1978.5,0.001]
[1772608173239,0.001,1978.6,1978.2,0.001]
[1772608174464,0.001,1978.4,1978.2,0.001]
[1772608175237,1.26464739,1978.4,1978.2,0.001]
[1772608176461,0.001,1978.3,1978.2,0.001]
[1772608176769,0.001,1978.3,1977.8,4.23625726]
[1772608177061,1.974,1978.2,1977.8,4.23625726]
[1772608177265,1.26383903,1978.1,1977.8,4.23625726]
[1772608177463,3.23782569,1978.2,1977.8,4.23625726]
[1772608178462,0.001,1978.0,1977.8,4.23625726]
[1772608180465,1.26374634,1978.3,1977.9,4.23475726]
[1772608180666,1.975,1978.2,1978.0,0.001]
[1772608181485,1.26383903,1978.1,1978.0,0.001]
[1772608181684,3.23882529,1978.2,1978.0,0.001]
[1772608185070,0.002,1978.6,1978.0,0.001]
[1772608185071,0.002,1979.7,1978.1,4.74623616]
[1772608185378,1.26482657,1979.7,1978.9,4.74623616]
[1772608185808,1.26482657,1979.7,1978.9,4.23475726]
[1772608186117,1.77630547,1979.7,1978.9,4.23475726]
[1772608186419,0.5114789,1979.3,1978.5,4.23475726]
[1772608186622,1.946,1979.3,1978.5,4.23475726]
[1772608188008,1.27760284,1979.4,1978.5,4.23475726]
[1772608188211,1.95,1979.2,1978.5,4.23475726]
[1772608188793,3.21314944,1979.2,1978.7,4.23475726]
[1772608189299,1.27760284,1979.0,1978.5,4.01017786]
[1772608190304,0.002,1980.0,1979.0,4.12246756]
[1772608190507,0.002,1980.0,1979.0,3.1233194]
[1772608190824,0.002,1980.0,1979.2,3.69345326]
[1772608190985,1.27960284,1980.0,1979.2,3.69345326]
[1772608191328,2.04448577,1979.8,1979.2,3.69345326]
[1772608191618,0.76688293,1979.5,1979.0,3.69345326]
[1772608191791,0.76688293,1979.5,1978.8,3.69345326]
[1772608192196,2.04448577,1979.5,1978.8,3.69345326]
[1772608192819,3.30748844,1979.5,1978.8,4.95682795]
[1772608193813,2.0298856,1979.5,1978.8,4.95682795]
[1772608194798,2.0298856,1979.5,1978.9,3.69345326]
[1772608195724,0.002,1979.9,1979.5,3.69345326]
[1772608196632,0.002,1979.9,1979.0,3.6677783]
[1772608196633,1.26469129,1979.9,1979.1,3.69345326]
[1772608196796,0.002,1979.9,1979.3,3.69345326]
[1772608197616,2.73834891,1979.7,1978.9,3.69345326]
[1772608197914,0.002,1979.9,1978.6,4.9579662]
[1772608197915,2.73834891,1979.3,1978.6,4.9579662]
[1772608198120,2.55520568,1979.5,1978.7,3.69345326]
[1772608198121,1.27760284,1979.5,1978.7,3.69345326]
[1772608198308,4.00909116,1979.5,1978.7,3.69345326]
[1772608198712,2.73148832,1979.4,1978.7,3.69345326]
[1772608199104,1.2630728,1979.3,1978.7,4.95689619]
[1772608199696,3.98771675,1979.3,1978.7,3.69345326]
[1772608199919,2.72464395,1979.3,1978.7,4.95690833]
[1772608200325,2.72464395,1979.3,1978.7,3.69345326]
[1772608200624,2.71781035,1979.0,1978.6,0.001]
[1772608200827,3.99541319,1978.9,1978.6,0.001]
[1772608201324,3.98759447,1978.7,1978.3,0.001]
[1772608201522,2.70999163,1978.6,1977.8,3.69445326]
[1772608202022,2.70327745,1978.4,1977.8,0.001]
[1772608202929,3.97411358,1978.1,1977.8,0.001]
[1772608203119,1.26390293,1978.0,1977.3,1.26534718]
[1772608203824,3.96041367,1978.0,1977.3,1.26534718]
[1772608204522,1.27760284,1977.9,1977.3,0.001]
[1772608205109,3.96041367,1978.0,1977.3,0.001]
[1772608206823,8.28899724,1978.1,1977.4,3.69345326]
[1772608206824,1.26388375,1978.1,1977.4,3.69345326]
[1772608207127,1.26388375,1978.1,1977.8,0.001]
[1772608207128,3.93335804,1978.1,1977.8,0.001]
[1772608207528,2.66947429,1978.0,1977.3,0.001]
[1772608207711,2.54148659,1978.1,1977.3,0.001]
[1772608207712,3.94707713,1977.7,1977.3,0.001]
[1772608207914,2.66947429,1977.7,1977.3,0.001]
[1772608208821,2.65431129,1977.7,1977.3,0.001]
[1772608209604,1.26415857,1977.6,1977.3,0.001]
[1772608210336,2.63464213,1977.4,1977.1,0.001]
[1772608210927,2.63464213,1977.6,1977.1,0.001]
[1772608211529,2.62800645,1977.5,1977.1,0.001]
[1772608211829,3.89229288,1977.4,1977.1,0.001]
[1772608212933,2.61470064,1977.1,1976.3,3.69345326]
[1772608213114,1.27760284,1976.9,1976.3,3.69345326]
[1772608213315,5.86330348,1977.1,1976.3,3.69345326]
[1772608214225,1.26454223,1977.0,1976.4,4.95837938]
[1772608214932,1.26454223,1977.0,1976.4,3.69345326]
[1772608215255,5.84080986,1977.3,1976.4,3.69345326]
[1772608215908,2.59479924,1977.2,1976.4,3.69345326]
[1772608216736,5.13688035,1977.1,1976.4,3.69345326]
[1772608216944,2.58818094,1976.8,1976.2,3.69345326]
[1772608217941,5.13026205,1977.1,1976.2,3.69345326]
[1772608218312,4.56032567,1977.0,1976.2,3.69345326]
[1772608218513,2.58232567,1977.0,1976.2,3.69345326]
[1772608218722,2.58232567,1977.0,1976.2,4.95850464]
[1772608218723,3.84693187,1976.9,1976.2,4.95850464]
[1772608218924,2.58232567,1976.8,1976.5,0.001]
[1772608219419,2.57571274,1976.7,1975.8,3.94743015]
[1772608220032,3.83449872,1976.9,1976.2,3.61250813]
[1772608220242,1.2646062,1976.9,1976.2,3.61250813]
[1772608220934,5.0576621,1977.2,1976.2,3.61250813]
[1772608220935,3.24542153,1977.2,1976.4,3.61150813]
[1772608222033,5.80212136,1977.2,1976.4,3.61150813]
[1772608222815,5.80212136,1977.2,1976.5,4.87637026]
[1772608223543,5.80212136,1977.2,1976.5,3.61150813]
[1772608223930,12.28212136,1977.2,1976.5,3.61150813]
[1772608224737,2.54354543,1977.1,1976.5,3.61150813]
[1772608224935,1.26454223,1977.0,1976.5,3.61150813]
[1772608225339,1.26454223,1977.0,1976.5,4.87635976]
[1772608225939,1.26452679,1977.1,1976.6,3.61150813]
[1772608226134,1.988,1977.1,1976.6,3.61150813]
[1772608226917,3.25249553,1977.1,1976.6,4.87628592]
[1772608227531,3.25248476,1977.1,1976.6,4.87628592]
[1772608228547,2.51737657,1977.0,1976.4,3.61150813]
[1772608228917,3.25248476,1977.1,1976.5,4.87637026]
[1772608229115,7.7444484,1977.2,1976.6,3.61150813]
[1772608229341,1.993,1977.1,1976.6,3.61150813]
[1772608231017,3.25750111,1977.1,1976.6,4.87628663]
[1772608231218,3.25750111,1977.1,1976.6,3.61150813]
[1772608231417,1.26450111,1977.1,1976.6,3.61150813]
[1772608232146,1.26450111,1977.1,1976.6,4.87630348]
[1772608232342,1.997,1977.1,1976.7,3.61150813]
[1772608232843,0.002,1977.0,1976.5,3.61250813]
[1772608233047,1.26654223,1977.0,1976.5,4.87736232]
[1772608233342,3.75151906,1977.0,1976.5,3.61250813]
[1772608236939,3.75151906,1977.0,1976.5,4.87736971]
[1772608237144,3.75151906,1977.0,1976.5,4.8773701]
[1772608237662,2.005,1976.9,1976.6,3.61150813]
[1772608237832,0.002,1977.0,1976.6,3.61150813]
[1772608238026,2.007,1977.0,1976.6,3.61150813]
[1772608238751,5.72439786,1977.0,1976.6,3.61150813]
[1772608239247,1.26655204,1977.0,1976.5,4.877364]
[1772608239418,2.007,1976.9,1976.7,3.61150813]
[1772608242144,2.007,1976.9,1976.5,4.87732164]
[1772608242657,2.007,1976.9,1976.6,3.61150813]
[1772608243328,0.002,1977.0,1976.6,3.61150813]
[1772608243527,2.014,1977.0,1976.6,3.61150813]
[1772608243739,2.014,1977.0,1976.7,3.61150813]
[1772608243740,2.015,1977.0,1976.7,3.61150813]
[1772608245629,2.017,1977.1,1977.0,9.421713]
[1772608245831,3.28147827,1977.1,1977.0,3.01928121]
[1772608246127,3.28147827,1977.1,1976.8,0.001]
[1772608246542,3.28147827,1977.1,1976.9,3.61150813]
[1772608246543,0.002,1977.1,1976.9,3.61150813]
[1772608247337,2.69725576,1977.0,1976.5,0.001]
[1772608247838,1.2646062,1976.9,1976.5,0.001]
[1772608248448,1.2646062,1976.9,1976.7,0.001]
[1772608250459,1.2646062,1976.9,1976.5,0.001]
[1772608250460,2.65871409,1976.8,1976.5,0.001]
[1772608251159,2.021,1976.8,1976.5,4.00615679]
[1772608251656,2.021,1976.9,1976.5,4.00615679]
[1772608252560,2.022,1976.9,1976.5,5.27101496]
[1772608253058,2.022,1976.9,1976.5,4.00615679]
[1772608253260,2.022,1976.9,1976.6,4.00515679]
[1772608254573,2.022,1976.9,1976.7,4.00515679]
[1772608254765,3.91389686,1977.1,1976.7,4.00515679]
[1772608255833,1.2655268,1977.1,1976.7,4.00515679]
[1772608256355,2.59238801,1977.0,1976.7,0.001]
[1772608256562,1.2646062,1976.9,1976.7,0.001]
[1772608256735,3.85699421,1976.9,1976.7,0.001]
[1772608257760,3.84793424,1977.0,1976.7,0.001]
[1772608258074,2.57041937,1976.9,1976.7,0.001]
[1772608258637,3.83508324,1976.9,1976.7,0.001]
[1772608259142,0.002,1977.0,1976.7,0.001]
[1772608259354,2.56151814,1977.0,1976.7,0.001]
[1772608259557,3.82607034,1977.0,1976.7,0.001]
[1772608262040,0.002,1977.0,1976.7,4.00615679]
[1772608262436,0.001,1977.1,1976.8,4.00515679]
[1772608262642,0.002,1977.3,1976.8,4.00515679]
[1772608262844,0.002,1977.3,1977.0,4.00515679]
[1772608263262,0.002,1977.3,1977.1,4.00515679]
[1772608264855,0.002,1977.3,1977.2,0.001]
[1772608265569,0.002,1977.3,1977.2,3.6455643]
[1772608267071,6.48,1977.7,1977.2,3.6455643]
[1772608267072,6.48,1977.7,1977.2,4.00515679]
[1772608267278,4.87784094,1977.8,1977.2,4.00615679]
[1772608267645,2.84584094,1977.8,1977.4,4.00515679]
[1772608267848,2.032,1978.0,1977.4,4.00515679]
[1772608268059,2.83600123,1977.9,1977.2,4.00615679]
[1772608268557,2.83600123,1977.9,1977.2,5.27056489]
[1772608269069,0.002,1977.3,1977.2,5.27056489]
[1772608269269,0.001,1977.3,1977.2,5.26956489]
[1772608271040,1.16727826,1977.7,1977.2,5.26956489]
[1772608271470,2.82590707,1977.8,1977.3,4.00515679]
[1772608271770,2.80589641,1978.0,1977.3,4.00515679]
[1772608272468,1.26383903,1978.1,1977.3,4.00515679]
[1772608272965,4.06267394,1978.1,1977.3,4.00515679]
[1772608273469,4.06267394,1978.1,1977.5,4.00515679]
[1772608275758,4.06267394,1978.1,1977.6,4.00515679]
[1772608277873,2.79883491,1978.1,1977.7,1.26409465]
[1772608278052,4.06267783,1978.1,1977.6,5.26926552]
[1772608278769,4.06267783,1978.1,1977.6,4.00515679]
[1772608280396,4.06267783,1978.1,1977.6,5.26930986]
[1772608280678,0.002,1978.0,1977.6,5.26930986]
[1772608281179,0.002,1978.0,1977.6,4.00515679]
[1772608281379,2.70869977,1978.0,1977.4,3.50399528]
[1772608282274,2.70869977,1978.0,1977.6,3.50399528]
[1772608283370,3.97262414,1978.0,1977.6,3.50399528]
[1772608283569,2.68797916,1977.9,1977.2,3.50399528]
[1772608283973,6.482,1978.0,1977.2,3.50399528]
[1772608284153,7.74590648,1978.0,1977.2,3.50399528]
[1772608284353,6.482,1978.0,1977.3,1.26435037]
[1772608284664,0.002,1978.0,1977.4,3.50399528]
[1772608286580,0.002,1978.0,1977.5,1.2642225]
[1772608286784,0.002,1978.0,1977.6,3.50399528]
[1772608289160,0.002,1978.0,1977.7,1.26409465]
[1772608289365,0.002,1978.0,1977.8,3.50399528]
[1772608292295,0.002,1978.0,1977.8,4.76802039]
[1772608292666,0.002,1978.0,1977.8,3.50399528]
[1772608294976,0.002,1978.0,1977.8,4.76801809]
[1772608296296,0.002,1978.0,1977.9,3.50399528]
[1772608300769,0.002,1978.0,1977.9,4.76796211]
[1772608301197,0.002,1978.0,1977.9,3.50399528]
[1772608302981,0.002,1978.0,1977.9,4.76796211]
[1772608303196,0.002,1978.0,1977.9,3.50399528]
[1772608304299,3.00887058,1978.0,1977.6,0.001]
[1772608304900,2.49541997,1977.8,1977.6,0.001]
[1772608305889,2.47654562,1978.0,1977.6,3.50499528]
[1772608307004,0.002,1977.9,1977.6,4.76912233]
[1772608307304,0.002,1977.9,1977.6,3.50499528]
[1772608309703,2.44203704,1977.9,1977.6,3.50499528]
[1772608311188,2.44203704,1977.9,1977.6,0.001]
[1772608311380,2.41983575,1977.8,1977.6,0.001]
[1772608312820,0.002,1977.9,1977.6,3.71643968]
[1772608313321,2.40187825,1977.9,1977.6,3.71643968]
[1772608313523,2.40187825,1977.9,1977.6,4.98058459]
[1772608314184,2.40187825,1977.9,1977.6,3.71643968]
[1772608314685,2.40187825,1977.9,1977.6,4.9805963]
[1772608314992,2.40187825,1977.9,1977.6,3.71643968]
[1772608316289,2.40187825,1977.9,1977.6,4.98059764]
[1772608316705,2.40187825,1977.9,1977.6,3.71643968]
[1772608317416,2.40187825,1977.9,1977.6,0.001]
[1772608317618,2.360672,1977.8,1977.6,0.001]
[1772608320004,0.002,1977.9,1977.6,3.71643968]
[1772608320205,2.3338257,1977.9,1977.6,3.71643968]
[1772608320407,3.5978052,1977.9,1977.6,0.001]
[1772608320599,1.2659795,1977.9,1977.6,0.001]
[1772608320796,3.5978052,1977.9,1977.6,0.001]
[1772608321019,2.83376506,1977.8,1977.5,0.001]
[1772608321189,2.83376506,1977.8,1977.3,0.001]
[1772608321511,2.83376506,1977.8,1977.3,3.71643968]